[Event "Djerba Festival Blitz 2025"]
[Site "Djerba"]
[Date "2025.02.21"]
[Round "8.23"]
[White "MEZGOURI NOUREDDINE"]
[Black "Dauvois, Theo"]
[Result "1-0"]
[ECO "A01"]
[WhiteElo "1891"]
[BlackElo "1663"]
[PlyCount "146"]
[EventDate "2025.02.15"]
[EventType "swiss"]
[EventCountry "TUN"]
[TimeControl "180+3"]

1. b3 {[%emt 0:00:04]} d5 {[%emt 0:00:11]} 2. Bb2 {[%emt 0:00:03]} Nf6 {[%emt 0:00:07]} 3. g3 {[%emt 0:00:02]} Nc6 {[%emt 0:00:07]} 4. Bg2 {[%emt 0:00:03]} e5 {[%emt 0:00:02]} 5. e3 {[%emt 0:00:02]} Bg4 {[%emt 0:00:06]} 6. Ne2 {[%emt 0:00:04]} Bd6 {[%emt 0:00:07]} 7. h3 {[%emt 0:00:04]} Bh5 {[%emt 0:00:01]} 8. d3 {[%emt 0:00:07]} O-O {[%emt 0:00:05]} 9. Nd2 {[%emt 0:00:03]} Qe7 {[%emt 0:00:29]} 10. e4 {[%emt 0:00:14]} d4 {[%emt 0:00:04]} 11. a3 {[%emt 0:00:05]} Nd7 {[%emt 0:00:10]} 12. Nc4 {[%emt 0:00:02]} Bg6 {[%emt 0:00:07]} 13. O-O {[%emt 0:00:09]} f5 {[%emt 0:00:02]} 14. exf5 {[%emt 0:00:22]} Bxf5 {[%emt 0:00:02]} 15. f4 {[%emt 0:00:14]} Rae8 {[%emt 0:00:28]} 16. fxe5 {[%emt 0:00:13]} Ndxe5 {[%emt 0:00:14]} 17. Nxe5 {[%emt 0:00:38]} Bxe5 {[%emt 0:00:06]} 18. Nf4 {[%emt 0:00:09]} Bxf4 {[%emt 0:00:04]} 19. Rxf4 {[%emt 0:00:04]} Qe3+ {[%emt 0:00:05]} 20. Kh2 {[%emt 0:00:05]} Qe2 {[%emt 0:00:09]} 21. Rf1 {[%emt 0:00:38]} Re7 {[%emt 0:00:19]} 22. Re1 {[%emt 0:00:07]} Qxd1 {[%emt 0:00:04]} 23. Raxd1 {[%emt 0:00:03]} Rfe8 {[%emt 0:00:05]} 24. Rf1 {[%emt 0:00:04]} Bd7 {[%emt 0:00:09]} 25. Rf2 {[%emt 0:00:05]} Re2 {[%emt 0:00:02]} 26. Rdf1 {[%emt 0:00:03]} h6 {[%emt 0:00:13]} 27. Bxc6 {[%emt 0:00:07]} Bxc6 {[%emt 0:00:05]} 28. Bxd4 {[%emt 0:00:03]} Rxf2+ {[%emt 0:00:03]} 29. Rxf2 {[%emt 0:00:03]} Re1 {[%emt 0:00:04]} 30. g4 {[%emt 0:00:06]} Rh1+ {[%emt 0:00:07]} 31. Kg3 {[%emt 0:00:02]} Rg1+ {[%emt 0:00:02]} 32. Kf4 {[%emt 0:00:04]} Rg3 {[%emt 0:00:07]} 33. h4 {[%emt 0:00:04]} Rg1 {[%emt 0:00:12]} 34. Be5 {[%emt 0:00:06]} Bd7 {[%emt 0:00:09]} 35. Bxc7 {[%emt 0:00:09]} Rxg4+ {[%emt 0:00:03]} 36. Ke5 {[%emt 0:00:04]} Rxh4 {[%emt 0:00:04]} 37. Bd6 {[%emt 0:00:05]} Bc6 {[%emt 0:00:05]} 38. Rf8+ {[%emt 0:00:05]} Kh7 {[%emt 0:00:01]} 39. Rf7 {[%emt 0:00:04]} Rh5+ {[%emt 0:00:04]} 40. Ke6 {[%emt 0:00:07]} Bd5+ {[%emt 0:00:02]} 41. Ke7 {[%emt 0:00:02]} Bxf7 {[%emt 0:00:02]} 42. Kxf7 {[%emt 0:00:03]} Rf5+ {[%emt 0:00:03]} 43. Ke6 {[%emt 0:00:04]} Rf6+ {[%emt 0:00:03]} 44. Ke5 {[%emt 0:00:01]} h5 {[%emt 0:00:03]} 45. Be7 {[%emt 0:00:04]} Rf2 {[%emt 0:00:05]} 46. d4 {[%emt 0:00:03]} Re2+ {[%emt 0:00:06]} 47. Kd6 {[%emt 0:00:04]} Rxc2 {[%emt 0:00:03]} 48. d5 {[%emt 0:00:02]} Kh6 {[%emt 0:00:05]} 49. Ke6 {[%emt 0:00:03]} Rd2 {[%emt 0:00:03]} 50. d6 {[%emt 0:00:02]} g5 {[%emt 0:00:02]} 51. d7 {[%emt 0:00:04]} h4 {[%emt 0:00:02]} 52. d8=Q {[%emt 0:00:06]} Rxd8 {[%emt 0:00:02]} 53. Bxd8 {[%emt 0:00:03]} g4 {[%emt 0:00:02]} 54. Bxh4 {[%emt 0:00:03]} Kh5 {[%emt 0:00:03]} 55. Bg3 {[%emt 0:00:03]} Kg5 {[%emt 0:00:03]} 56. Ke5 {[%emt 0:00:02]} a6 {[%emt 0:00:02]} 57. a4 {[%emt 0:00:03]} Kg6 {[%emt 0:00:03]} 58. Kf4 {[%emt 0:00:02]} Kf6 {[%emt 0:00:01]} 59. Kxg4 {[%emt 0:00:02]} Ke6 {[%emt 0:00:02]} 60. b4 {[%emt 0:00:02]} Kd5 {[%emt 0:00:02]} 61. a5 {[%emt 0:00:02]} Kc4 {[%emt 0:00:01]} 62. Bd6 {[%emt 0:00:04]} Kd5 {[%emt 0:00:03]} 63. Bc5 {[%emt 0:00:03]} Kc4 {[%emt 0:00:02]} 64. Kf5 {[%emt 0:00:01]} Kd5 {[%emt 0:00:02]} 65. Kf6 {[%emt 0:00:03]} Kc6 {[%emt 0:00:01]} 66. Ke6 {[%emt 0:00:02]} Kc7 {[%emt 0:00:02]} 67. Ke7 {[%emt 0:00:02]} Kc6 {[%emt 0:00:05]} 68. Kd8 {[%emt 0:00:03]} b5 {[%emt 0:00:05]} 69. axb6 {[%emt 0:00:16]} Kb7 {[%emt 0:00:04]} 70. Kd7 {[%emt 0:00:00]} Kb8 {[%emt 0:00:02]} 71. Kc6 {[%emt 0:00:00]} Ka8 {[%emt 0:00:01]} 72. b7+ {[%emt 0:00:00]} Kb8 {[%emt 0:00:02]} 73. Bd6+ {[%emt 0:00:02]} Ka7 {[%emt 0:00:02]} 1-0

[Event "Djerba Festival Blitz 2025"]
[Site "Djerba"]
[Date "2025.02.21"]
[Round "8.24"]
[White "Zenaidi, Sadok"]
[Black "Minde, Timothe"]
[Result "1-0"]
[ECO "C05"]
[WhiteElo "1872"]
[BlackElo "1879"]
[PlyCount "107"]
[EventDate "2025.02.15"]
[EventType "swiss"]
[EventCountry "TUN"]
[TimeControl "180+3"]

1. e4 {[%emt 0:00:02]} e6 {[%emt 0:00:03]} 2. d4 {[%emt 0:00:03]} d5 {[%emt 0:00:01]} 3. Nd2 {[%emt 0:00:01]} Nf6 {[%emt 0:00:02]} 4. e5 {[%emt 0:00:03]} Nfd7 {[%emt 0:00:02]} 5. Ndf3 {[%emt 0:00:13]} c5 {[%emt 0:00:03]} 6. dxc5 {[%emt 0:00:04]} Nc6 {[%emt 0:00:02]} 7. Bf4 {[%emt 0:00:02]} Bxc5 {[%emt 0:00:07]} 8. Bd3 {[%emt 0:00:06]} Nb4 {[%emt 0:00:09]} 9. Ne2 {[%emt 0:00:13]} Nxd3+ {[%emt 0:00:03]} 10. Qxd3 {[%emt 0:00:03]} f6 {[%emt 0:00:21]} 11. O-O {[%emt 0:00:06]} O-O {[%emt 0:00:09]} 12. exf6 {[%emt 0:00:13]} Qxf6 {[%emt 0:00:09]} 13. Bd2 {[%emt 0:00:36]} Bd6 {[%emt 0:00:28]} 14. Bc3 {[%emt 0:00:06]} Qe7 {[%emt 0:00:12]} 15. Rae1 {[%emt 0:00:05]} Nc5 {[%emt 0:00:03]} 16. Qd1 {[%emt 0:00:09]} Ne4 {[%emt 0:00:04]} 17. Ng3 {[%emt 0:00:06]} Nxc3 {[%emt 0:00:04]} 18. bxc3 {[%emt 0:00:03]} b6 {[%emt 0:00:11]} 19. Qd3 {[%emt 0:00:11]} a5 {[%emt 0:00:05]} 20. Nd4 {[%emt 0:00:03]} Ba6 {[%emt 0:00:26]} 21. Nb5 {[%emt 0:00:02]} Qd7 {[%emt 0:00:08]} 22. a4 {[%emt 0:00:02]} Bxg3 {[%emt 0:00:11]} 23. hxg3 {[%emt 0:00:18]} Rac8 {[%emt 0:00:03]} 24. Re3 {[%emt 0:00:06]} Rc4 {[%emt 0:00:06]} 25. Rb1 {[%emt 0:00:49]} Rxa4 {[%emt 0:00:07]} 26. Ree1 {[%emt 0:00:13]} Re4 {[%emt 0:00:32]} 27. Rxe4 {[%emt 0:00:04]} Bxb5 {[%emt 0:00:03]} 28. Rxb5 {[%emt 0:00:03]} Qc7 {[%emt 0:00:05]} 29. Rxe6 {[%emt 0:00:07]} Qf7 {[%emt 0:00:06]} 30. Re2 {[%emt 0:00:03]} Qd7 {[%emt 0:00:02]} 31. Qxd5+ {[%emt 0:00:02]} Qxd5 {[%emt 0:00:03]} 32. Rxd5 {[%emt 0:00:02]} h6 {[%emt 0:00:02]} 33. Rb5 {[%emt 0:00:03]} Rf6 {[%emt 0:00:02]} 34. Re8+ {[%emt 0:00:04]} Kh7 {[%emt 0:00:03]} 35. Rb8 {[%emt 0:00:02]} Rc6 {[%emt 0:00:02]} 36. R8xb6 {[%emt 0:00:05]} Rxc3 {[%emt 0:00:02]} 37. Rxa5 {[%emt 0:00:03]} Rxc2 {[%emt 0:00:02]} 38. Rb7 {[%emt 0:00:02]} Rc1+ {[%emt 0:00:04]} 39. Kh2 {[%emt 0:00:01]} Rc6 {[%emt 0:00:02]} 40. Raa7 {[%emt 0:00:03]} Rg6 {[%emt 0:00:02]} 41. Rxg7+ {[%emt 0:00:04]} Rxg7 {[%emt 0:00:02]} 42. Rxg7+ {[%emt 0:00:03]} Kxg7 {[%emt 0:00:02]} 43. Kh3 {[%emt 0:00:02]} Kg6 {[%emt 0:00:02]} 44. Kg4 {[%emt 0:00:02]} h5+ {[%emt 0:00:02]} 45. Kh4 {[%emt 0:00:01]} Kh6 {[%emt 0:00:03]} 46. f3 {[%emt 0:00:06]} Kg6 {[%emt 0:00:02]} 47. f4 {[%emt 0:00:01]} Kh6 {[%emt 0:00:02]} 48. f5 {[%emt 0:00:02]} Kh7 {[%emt 0:00:02]} 49. Kxh5 {[%emt 0:00:02]} Kg7 {[%emt 0:00:01]} 50. Kg5 {[%emt 0:00:02]} Kf7 {[%emt 0:00:02]} 51. f6 {[%emt 0:00:02]} Kf8 {[%emt 0:00:03]} 52. Kg6 {[%emt 0:00:02]} Kg8 {[%emt 0:00:01]} 53. g4 {[%emt 0:00:02]} Kf8 {[%emt 0:00:02]} 54. f7 {[%emt 0:00:01]} 1-0

[Event "Djerba Festival Blitz 2025"]
[Site "Djerba"]
[Date "2025.02.21"]
[Round "8.25"]
[White "Sazlik, Mucahit"]
[Black "Marceil, Jean"]
[Result "1-0"]
[ECO "D66"]
[WhiteElo "1672"]
[BlackElo "1901"]
[PlyCount "29"]
[EventDate "2025.02.15"]
[EventType "swiss"]
[EventCountry "TUN"]
[TimeControl "180+3"]

1. d4 {[%emt 0:00:03]} d5 {[%emt 0:00:06]} 2. c4 {[%emt 0:00:02]} e6 {[%emt 0:00:02]} 3. Nc3 {[%emt 0:00:03]} Nf6 {[%emt 0:00:02]} 4. Bg5 {[%emt 0:00:02]} Be7 {[%emt 0:00:02]} 5. e3 {[%emt 0:00:06]} O-O {[%emt 0:00:01]} 6. Nf3 {[%emt 0:00:05]} a6 {[%emt 0:00:03]} 7. Rc1 {[%emt 0:00:08]} dxc4 {[%emt 0:00:03]} 8. Bxc4 {[%emt 0:00:02]} b5 {[%emt 0:00:02]} 9. Bd3 {[%emt 0:00:05]} Bb7 {[%emt 0:00:02]} 10. O-O {[%emt 0:00:04]} Nbd7 {[%emt 0:00:03]} 11. Bb1 {[%emt 0:00:11]} c5 {[%emt 0:00:07]} 12. a3 {[%emt 0:00:20]} c4 {[%emt 0:00:10]} 13. Qc2 {[%emt 0:00:02]} h6 {[%emt 0:00:23]} 14. Bxf6 {[%emt 0:00:03]} Bxf6 {[%emt 0:00:04]} 15. Qh7# {[%emt 0:02:32] Bc8} 1-0

[Event "Djerba Festival Blitz 2025"]
[Site "Djerba"]
[Date "2025.02.21"]
[Round "8.27"]
[White "Rekik Ismail"]
[Black "Badrakova, Kseniya"]
[Result "1-0"]
[ECO "A21"]
[WhiteElo "2006"]
[BlackElo "1757"]
[PlyCount "45"]
[EventDate "2025.02.15"]
[EventType "swiss"]
[EventCountry "TUN"]
[TimeControl "180+3"]

1. c4 {[%emt 0:03:06]} e5 {[%emt 0:03:06]} 2. Nc3 {[%emt 0:00:03]} Bc5 3. Nf3 {[%emt 0:00:03]} d6 {[%emt 0:00:06]} 4. d3 {[%emt 0:00:03]} a6 {[%emt 0:00:03]} 5. g3 Nf6 {[%emt 0:00:03]} 6. Bg2 {[%emt 0:00:06]} Nc6 {[%emt 0:00:03]} 7. O-O {[%emt 0:00:03]} h5 {[%emt 0:00:03]} 8. e3 {[%emt 0:00:03]} Ba7 {[%emt 0:00:03]} 9. d4 {[%emt 0:00:03]} e4 {[%emt 0:00:03]} 10. Ng5 {[%emt 0:00:03]} Bf5 {[%emt 0:00:03]} 11. c5 {[%emt 0:00:03]} d5 {[%emt 0:00:03]} 12. Qb3 {[%emt 0:00:03]} Rb8 {[%emt 0:00:03]} 13. h4 {[%emt 0:00:03]} Qd7 {[%emt 0:00:03]} 14. f3 {[%emt 0:00:03]} exf3 {[%emt 0:00:03]} 15. Rxf3 {[%emt 0:00:03]} Ng4 {[%emt 0:00:03]} 16. Bd2 {[%emt 0:00:03]} f6 {[%emt 0:00:03]} 17. Rxf5 {[%emt 0:00:03]} Qxf5 {[%emt 0:00:03]} 18. Rf1 Qd3 {[%emt 0:00:03]} 19. Qxd5 {[%emt 0:00:06]} Ne7 {[%emt 0:00:03]} 20. Qf7+ {[%emt 0:00:03]} Kd7 {[%emt 0:00:03]} 21. Qe6+ {[%emt 0:00:03]} Ke8 {[%emt 0:00:03]} 22. c6 {[%emt 0:00:03]} fxg5 {[%emt 0:00:03]} 23. Qd7# {[%emt 0:00:03]} 1-0

[Event "Djerba Festival Blitz 2025"]
[Site "Djerba"]
[Date "2025.02.21"]
[Round "8.29"]
[White "Benzarti, Thabet"]
[Black "Boudnani, Brahim"]
[Result "0-1"]
[ECO "A55"]
[WhiteElo "1664"]
[BlackElo "1721"]
[PlyCount "48"]
[EventDate "2025.02.15"]
[EventType "swiss"]
[EventCountry "TUN"]
[TimeControl "180+3"]

1. d4 {[%emt 0:00:04]} d6 {[%emt 0:00:02]} 2. c4 {[%emt 0:00:02]} Nf6 {[%emt 0:00:03]} 3. Nc3 {[%emt 0:00:02]} Nbd7 {[%emt 0:00:02]} 4. e4 {[%emt 0:00:05]} c6 {[%emt 0:00:02]} 5. Nf3 {[%emt 0:00:03]} e5 {[%emt 0:00:03]} 6. d5 {[%emt 0:00:10]} c5 {[%emt 0:00:02]} 7. Bd3 {[%emt 0:00:09]} Be7 {[%emt 0:00:02]} 8. O-O {[%emt 0:00:04]} a6 {[%emt 0:03:11]} 9. a4 {[%emt 0:02:51]} Qc7 {[%emt 0:00:00]} 10. h3 {[%emt 0:00:00]} h6 {[%emt 0:00:00]} 11. Be3 {[%emt 0:00:00]} g5 {[%emt 0:00:00]} 12. Nh2 {[%emt 0:00:00]} Nf8 {[%emt 0:00:00]} 13. f3 {[%emt 0:00:00]} Ng6 {[%emt 0:00:00]} 14. Ng4 {[%emt 0:00:00]} Nf4 {[%emt 0:00:00]} 15. Bc2 {[%emt 0:00:00]} h5 {[%emt 0:00:00]} 16. Nxf6+ {[%emt 0:00:00]} Bxf6 {[%emt 0:00:00]} 17. Rb1 {[%emt 0:00:00]} g4 {[%emt 0:00:00]} 18. fxg4 {[%emt 0:00:00]} hxg4 {[%emt 0:00:00]} 19. Bxf4 {[%emt 0:00:00]} exf4 {[%emt 0:00:00]} 20. hxg4 {[%emt 0:00:00]} Be5 {[%emt 0:00:00]} 21. Qd2 {[%emt 0:00:03]} Qe7 {[%emt 0:00:00]} 22. Ne2 {[%emt 0:00:18]} Qh4 {[%emt 0:00:00]} 23. Nxf4 {[%emt 0:00:14]} Bd4+ {[%emt 0:00:00]} 24. Rf2 {[%emt 0:00:04]} Qh1# {[%emt 0:00:00]} 0-1

[Event "Djerba Festival Blitz 2025"]
[Site "Djerba"]
[Date "2025.02.21"]
[Round "8.30"]
[White "Saidi, Bouziane"]
[Black "Badya, Vasily"]
[Result "1/2-1/2"]
[ECO "B08"]
[WhiteElo "1710"]
[BlackElo "1765"]
[PlyCount "196"]
[EventDate "2025.02.15"]
[EventType "swiss"]
[EventCountry "TUN"]
[TimeControl "180+3"]

1. e4 {[%emt 0:03:06]} d6 2. Nf3 {[%emt 0:00:03]} Nf6 {[%emt 0:03:09]} 3. Nc3 {[%emt 0:00:03]} g6 4. d4 {[%emt 0:00:03]} Bg7 5. Bc4 {[%emt 0:00:03]} O-O {[%emt 0:00:09]} 6. O-O {[%emt 0:00:03]} Nxe4 {[%emt 0:00:03]} 7. Bxf7+ {[%emt 0:00:03]} Rxf7 {[%emt 0:00:03]} 8. Nxe4 Bg4 {[%emt 0:00:03]} 9. c3 {[%emt 0:00:06]} Bxf3 {[%emt 0:00:03]} 10. gxf3 {[%emt 0:00:03]} e5 {[%emt 0:00:03]} 11. Ng5 {[%emt 0:00:03]} Rf6 {[%emt 0:00:03]} 12. Qb3+ {[%emt 0:00:03]} Kh8 {[%emt 0:00:03]} 13. Qxb7 {[%emt 0:00:03]} Nd7 {[%emt 0:00:03]} 14. Qd5 {[%emt 0:00:03]} Qf8 {[%emt 0:00:03]} 15. Ne6 {[%emt 0:00:03]} Qg8 {[%emt 0:00:03]} 16. Nxc7 {[%emt 0:00:03]} Qxd5 {[%emt 0:00:03]} 17. Nxd5 {[%emt 0:00:03]} Rxf3 {[%emt 0:00:03]} 18. Be3 {[%emt 0:00:03]} exd4 {[%emt 0:00:03]} 19. cxd4 Rb8 {[%emt 0:00:03]} 20. b3 {[%emt 0:00:06]} Rf5 21. Ne7 {[%emt 0:00:03]} Rf7 22. Nd5 {[%emt 0:00:03]} Nf6 {[%emt 0:00:09]} 23. Nf4 {[%emt 0:00:03]} Ng4 {[%emt 0:00:03]} 24. Ne6 {[%emt 0:00:03]} Nxe3 {[%emt 0:00:03]} 25. fxe3 {[%emt 0:00:03]} Rxf1+ {[%emt 0:00:03]} 26. Rxf1 {[%emt 0:00:03]} Bh6 {[%emt 0:00:03]} 27. Rf3 {[%emt 0:00:03]} Re8 {[%emt 0:00:03]} 28. Nf4 {[%emt 0:00:03]} Bxf4 {[%emt 0:00:03]} 29. Rxf4 {[%emt 0:00:03]} Rxe3 {[%emt 0:00:03]} 30. Kf2 {[%emt 0:00:03]} Rd3 {[%emt 0:00:03]} 31. Re4 {[%emt 0:00:03]} Rd2+ {[%emt 0:00:03]} 32. Kg3 {[%emt 0:00:03]} Rxa2 33. Re6 {[%emt 0:00:03]} d5 {[%emt 0:00:06]} 34. Rd6 {[%emt 0:00:03]} Ra5 {[%emt 0:00:03]} 35. Kf4 {[%emt 0:00:03]} Kg7 {[%emt 0:00:03]} 36. Ke5 Rb5 {[%emt 0:00:03]} 37. Rxd5 {[%emt 0:00:06]} Rxb3 38. Rd7+ {[%emt 0:00:03]} Kh6 {[%emt 0:00:06]} 39. Rxa7 {[%emt 0:00:03]} Rh3 {[%emt 0:00:03]} 40. d5 {[%emt 0:00:03]} Rxh2 {[%emt 0:00:03]} 41. d6 {[%emt 0:00:03]} Re2+ {[%emt 0:00:03]} 42. Kd5 {[%emt 0:00:03]} Rd2+ {[%emt 0:00:03]} 43. Kc6 Rc2+ 44. Kd7 {[%emt 0:00:06]} Kg5 {[%emt 0:00:06]} 45. Rc7 {[%emt 0:00:03]} Re2 {[%emt 0:00:03]} 46. Kc8 {[%emt 0:00:03]} Re8+ {[%emt 0:00:03]} 47. Kb7 {[%emt 0:00:03]} Kf6 {[%emt 0:00:03]} 48. d7 {[%emt 0:00:03]} Rd8 49. Kc6 {[%emt 0:00:03]} Ke7 {[%emt 0:00:06]} 50. Ra7 {[%emt 0:00:03]} h5 {[%emt 0:00:03]} 51. Ra5 {[%emt 0:00:03]} Rxd7 {[%emt 0:00:03]} 52. Re5+ Kd8 {[%emt 0:00:03]} 53. Rg5 {[%emt 0:00:06]} Rg7 54. Kd6 {[%emt 0:00:03]} Ke8 55. Ke6 {[%emt 0:00:03]} Kf8 56. Kf6 {[%emt 0:00:03]} Kg8 {[%emt 0:00:12]} 57. Rc5 {[%emt 0:00:03]} Kh7 {[%emt 0:00:03]} 58. Kg5 {[%emt 0:00:03]} Rf7 {[%emt 0:00:03]} 59. Rd5 {[%emt 0:00:03]} Rg7 60. Ra5 {[%emt 0:00:03]} Rf7 61. Rd5 {[%emt 0:00:03]} Kg7 {[%emt 0:00:09]} 62. Re5 {[%emt 0:00:03]} Rf1 {[%emt 0:00:03]} 63. Re7+ {[%emt 0:00:03]} Rf7 {[%emt 0:00:03]} 64. Re5 {[%emt 0:00:03]} Kh7 {[%emt 0:00:03]} 65. Rb5 {[%emt 0:00:03]} Kg7 {[%emt 0:00:03]} 66. Rd5 Re7 67. Rb5 {[%emt 0:00:06]} Kf7 68. Rc5 {[%emt 0:00:03]} Re6 {[%emt 0:00:09]} 69. Rc7+ {[%emt 0:00:03]} Kf8 {[%emt 0:00:03]} 70. Ra7 {[%emt 0:00:03]} Kg8 {[%emt 0:00:03]} 71. Rc7 {[%emt 0:00:03]} Kf8 {[%emt 0:00:03]} 72. Ra7 {[%emt 0:00:03]} Rd6 {[%emt 0:00:03]} 73. Rc7 {[%emt 0:00:03]} Re6 {[%emt 0:00:03]} 74. Rh7 {[%emt 0:00:03]} Kg8 {[%emt 0:00:03]} 75. Ra7 {[%emt 0:00:03]} Kf8 {[%emt 0:00:03]} 76. Rb7 {[%emt 0:00:03]} Re7 {[%emt 0:00:03]} 77. Rb8+ {[%emt 0:00:03]} Kf7 78. Rb6 {[%emt 0:00:03]} Re5+ {[%emt 0:00:06]} 79. Kf4 {[%emt 0:00:03]} Re6 {[%emt 0:00:03]} 80. Rb7+ {[%emt 0:00:03]} Kf6 81. Rb8 {[%emt 0:00:03]} Rd6 82. Rf8+ {[%emt 0:00:03]} Kg7 {[%emt 0:00:09]} 83. Rb8 {[%emt 0:00:03]} Kf6 {[%emt 0:00:03]} 84. Rf8+ {[%emt 0:00:03]} Ke6 {[%emt 0:00:03]} 85. Kg5 {[%emt 0:00:03]} Ke5 {[%emt 0:00:03]} 86. Re8+ {[%emt 0:00:03]} Kd4 {[%emt 0:00:03]} 87. Re1 {[%emt 0:00:03]} Kd5 88. Rd1+ {[%emt 0:00:03]} Kc6 {[%emt 0:00:06]} 89. Rc1+ {[%emt 0:00:03]} Kd7 90. Re1 Re6 {[%emt 0:00:06]} 91. Rd1+ {[%emt 0:00:06]} Ke7 {[%emt 0:00:03]} 92. Rf1 Re5+ {[%emt 0:00:03]} 93. Kxg6 {[%emt 0:00:06]} h4 94. Rh1 {[%emt 0:00:03]} Re4 {[%emt 0:00:06]} 95. Kg5 {[%emt 0:00:03]} h3 {[%emt 0:00:03]} 96. Rxh3 Re5+ {[%emt 0:00:03]} 97. Kg6 {[%emt 0:00:06]} Re6+ {[%emt 0:00:03]} 98. Kg7 Kd8 1/2-1/2

[Event "Djerba Festival Blitz 2025"]
[Site "Djerba"]
[Date "2025.02.21"]
[Round "8.32"]
[White "Fengal, Zineddine"]
[Black "Azreug, Lazhar"]
[Result "0-1"]
[ECO "A48"]
[WhiteElo "1439"]
[BlackElo "1793"]
[PlyCount "66"]
[EventDate "2025.02.15"]
[EventType "swiss"]
[EventCountry "TUN"]
[TimeControl "180+3"]

1. d4 {[%emt 0:03:06]} Nf6 {[%emt 0:00:13]} 2. Nf3 {[%emt 0:00:00]} g6 {[%emt 0:00:07]} 3. Bf4 {[%emt 0:00:00]} Bg7 {[%emt 0:00:08]} 4. e3 {[%emt 0:00:00]} O-O {[%emt 0:00:03]} 5. Be2 {[%emt 0:00:12]} c5 {[%emt 0:00:06]} 6. c3 {[%emt 0:00:00]} d6 {[%emt 0:00:08]} 7. Nbd2 {[%emt 0:00:00]} Nc6 {[%emt 0:00:05]} 8. h3 {[%emt 0:00:00]} Be6 {[%emt 0:00:03]} 9. O-O {[%emt 0:00:00]} Qb6 {[%emt 0:00:08]} 10. Qc1 {[%emt 0:00:00]} cxd4 {[%emt 0:00:10]} 11. exd4 {[%emt 0:00:00]} Rac8 {[%emt 0:00:05]} 12. Nb3 {[%emt 0:00:00]} Bxb3 {[%emt 0:00:19]} 13. axb3 {[%emt 0:00:00]} Qxb3 {[%emt 0:00:02]} 14. Qd2 {[%emt 0:00:00]} a6 {[%emt 0:00:09]} 15. Ra3 {[%emt 0:00:00]} Qb6 {[%emt 0:00:26]} 16. Bd3 {[%emt 0:00:00]} Na5 {[%emt 0:00:09]} 17. Rfa1 {[%emt 0:00:00]} Nc4 {[%emt 0:00:04]} 18. Bxc4 {[%emt 0:00:00]} Rxc4 {[%emt 0:00:02]} 19. Qe2 {[%emt 0:00:00]} Rfc8 {[%emt 0:00:05]} 20. Nd2 {[%emt 0:00:45]} R4c7 {[%emt 0:00:04]} 21. Rb3 {[%emt 0:00:00]} Qc6 {[%emt 0:00:12]} 22. Bg3 {[%emt 0:00:00]} Nd5 {[%emt 0:00:17]} 23. Ne4 {[%emt 0:00:00]} Nb6 {[%emt 0:00:13]} 24. Nd2 {[%emt 0:00:00]} Qd5 {[%emt 0:00:10]} 25. Rxb6 {[%emt 0:00:00]} Bh6 {[%emt 0:00:06]} 26. Nf3 {[%emt 0:00:00]} Qf5 {[%emt 0:00:05]} 27. Rb3 {[%emt 0:00:00]} Qd5 {[%emt 0:00:03]} 28. Rba3 {[%emt 0:00:00]} Rc6 {[%emt 0:00:11]} 29. Bh4 {[%emt 0:00:00]} Bf8 {[%emt 0:00:37]} 30. Ra5 {[%emt 0:00:15]} Qb3 {[%emt 0:00:00]} 31. R1a3 {[%emt 0:00:06]} Qc4 {[%emt 0:00:00]} 32. Qe3 {[%emt 0:00:08]} Rb6 {[%emt 0:00:02]} 33. Nd2 {[%emt 0:00:06]} Qc7 {[%emt 0:00:03]} 0-1

[Event "Djerba Festival Blitz 2025"]
[Site "Djerba"]
[Date "2025.02.21"]
[Round "8.33"]
[White "Mendil, Yacine"]
[Black "Ben Mbarek, Mohamed"]
[Result "1-0"]
[ECO "D04"]
[WhiteElo "1699"]
[BlackElo "1570"]
[PlyCount "64"]
[EventDate "2025.02.15"]
[EventType "swiss"]
[EventCountry "TUN"]
[TimeControl "180+3"]

1. Nf3 {[%emt 0:00:03]} Nf6 {[%emt 0:00:03]} 2. b3 {[%emt 0:00:02]} g6 {[%emt 0:00:02]} 3. Bb2 {[%emt 0:00:02]} Bg7 {[%emt 0:00:02]} 4. e3 {[%emt 0:00:04]} O-O {[%emt 0:00:04]} 5. d4 {[%emt 0:00:02]} d5 {[%emt 0:00:04]} 6. h3 {[%emt 0:00:05]} Nc6 {[%emt 0:00:07]} 7. c4 {[%emt 0:00:04]} e6 {[%emt 0:00:05]} 8. cxd5 {[%emt 0:00:04]} exd5 {[%emt 0:00:03]} 9. Nbd2 {[%emt 0:00:05]} Bf5 {[%emt 0:00:09]} 10. a3 {[%emt 0:00:06]} Qd7 {[%emt 0:00:15]} 11. b4 {[%emt 0:00:04]} a5 {[%emt 0:00:10]} 12. b5 {[%emt 0:00:07]} Na7 {[%emt 0:00:03]} 13. a4 {[%emt 0:00:03]} Nc8 {[%emt 0:00:07]} 14. Nb3 {[%emt 0:00:03]} Nb6 {[%emt 0:00:06]} 15. Nc5 {[%emt 0:00:04]} Qc8 {[%emt 0:00:12]} 16. Rc1 {[%emt 0:00:05]} Ne4 {[%emt 0:00:13]} 17. Bd3 {[%emt 0:00:19]} Nxc5 {[%emt 0:00:18]} 18. Bxf5 {[%emt 0:00:02]} Qxf5 {[%emt 0:00:17]} 19. Rxc5 {[%emt 0:00:09]} Nc4 {[%emt 0:00:14]} 20. Ba1 {[%emt 0:00:26]} Rac8 {[%emt 0:00:22]} 21. O-O {[%emt 0:00:19]} b6 {[%emt 0:00:06]} 22. Rc6 {[%emt 0:00:02]} Rfe8 {[%emt 0:00:05]} 23. Nd2 {[%emt 0:00:13]} Nxd2 {[%emt 0:00:20]} 24. Qxd2 {[%emt 0:00:02]} Bh6 {[%emt 0:00:14]} 25. Qc3 {[%emt 0:00:24]} Re7 {[%emt 0:00:12]} 26. Rc1 {[%emt 0:00:09]} Re4 {[%emt 0:00:16]} 27. Rxb6 {[%emt 0:00:09]} cxb6 {[%emt 0:00:06]} 28. Qxc8+ {[%emt 0:00:03]} Qxc8 {[%emt 0:00:03]} 29. Rxc8+ {[%emt 0:00:02]} Kg7 {[%emt 0:00:06]} 30. Rc6 {[%emt 0:00:09]} Re6 {[%emt 0:00:04]} 31. Kf1 {[%emt 0:00:09]} Rf6 {[%emt 0:00:08]} 32. Ke2 {[%emt 0:00:03]} Re6 {[%emt 0:00:03]} 1-0

[Event "Djerba Festival Blitz 2025"]
[Site "Djerba"]
[Date "2025.02.21"]
[Round "8.34"]
[White "Zerarga, Imene"]
[Black "Chavallard, Yanis"]
[Result "1-0"]
[ECO "B08"]
[WhiteElo "1831"]
[BlackElo "1605"]
[PlyCount "57"]
[EventDate "2025.02.15"]
[EventType "swiss"]
[EventCountry "TUN"]
[TimeControl "180+3"]

1. e4 {[%emt 0:00:03]} g6 {[%emt 0:00:02]} 2. d4 {[%emt 0:00:02]} d6 {[%emt 0:00:02]} 3. Nf3 {[%emt 0:00:03]} Bg7 {[%emt 0:00:03]} 4. Nc3 {[%emt 0:00:02]} Nf6 {[%emt 0:00:02]} 5. Be2 {[%emt 0:00:12]} Nbd7 {[%emt 0:00:02]} 6. h3 {[%emt 0:00:03]} O-O {[%emt 0:00:09]} 7. O-O {[%emt 0:00:05]} c6 {[%emt 0:00:22]} 8. Be3 {[%emt 0:00:03]} Ne8 {[%emt 0:00:16]} 9. Qd2 {[%emt 0:00:06]} e5 {[%emt 0:00:06]} 10. Bh6 {[%emt 0:00:22]} exd4 {[%emt 0:00:10]} 11. Nxd4 {[%emt 0:00:04]} Nef6 {[%emt 0:00:14]} 12. Qg5 {[%emt 0:00:44]} Nc5 {[%emt 0:00:29]} 13. f3 {[%emt 0:00:25]} Ne6 {[%emt 0:00:15]} 14. Nxe6 {[%emt 0:00:13]} Bxe6 {[%emt 0:00:02]} 15. Bxg7 {[%emt 0:00:11]} Kxg7 {[%emt 0:00:04]} 16. Rad1 {[%emt 0:00:05]} Qb6+ {[%emt 0:00:07]} 17. Kh1 {[%emt 0:00:10]} Qxb2 {[%emt 0:00:06]} 18. Qd2 {[%emt 0:00:20]} Rad8 {[%emt 0:00:13]} 19. Rb1 {[%emt 0:00:04]} Qa3 {[%emt 0:00:05]} 20. Rxb7 {[%emt 0:00:07]} d5 {[%emt 0:00:07]} 21. e5 {[%emt 0:00:23]} Nh5 {[%emt 0:00:15]} 22. Kh2 {[%emt 0:00:11]} d4 {[%emt 0:00:23]} 23. Ne4 {[%emt 0:00:02]} Rd7 {[%emt 0:00:13]} 24. Rxd7 {[%emt 0:00:03]} Bxd7 {[%emt 0:00:02]} 25. g4 {[%emt 0:00:03]} Nf4 {[%emt 0:00:07]} 26. Qxf4 {[%emt 0:00:03]} f5 {[%emt 0:00:07]} 27. exf6+ {[%emt 0:00:15]} Kh8 {[%emt 0:00:06]} 28. Qh6 {[%emt 0:00:00]} Qxa2 {[%emt 0:00:07]} 29. Qg7# {[%emt 0:00:00]} 1-0